bitfinex/quotes_SOLUSD_20250714
["timestamp","ask_amount","ask_price","bid_price","bid_amount"]
[1752512107942,0.06,165.15,165.14,6.75546808]
[1752512108343,0.06,165.15,165.14,6.05546808]
[1752512109241,0.06,165.15,165.13,6.05583479]
[1752512109745,0.06,165.15,165.13,6.75583479]
[1752512110151,0.75,165.15,165.13,6.05583479]
[1752512111859,0.06,165.15,165.13,0.7]
[1752512112063,0.06,165.15,165.14,0.7]
[1752512112251,0.06,165.15,165.14,8.25423684]
[1752512113066,0.06,165.15,165.14,0.7]
[1752512113572,0.06,165.15,165.12,6.75620155]
[1752512113765,0.06,165.15,165.13,0.7]
[1752512114071,0.06,165.15,165.13,6.75550683]
[1752512114649,0.06,165.15,165.13,6.05550683]
[1752512114846,0.06,165.15,165.12,6.05605801]
[1752512115174,0.69,165.14,165.12,6.05605801]
[1752512115349,0.06,165.15,165.11,6.05646913]
[1752512115543,0.69,165.14,165.07,6.48211796]
[1752512115768,26.69,165.14,165.13,0.03]
[1752512116146,32.74546808,165.14,165.13,0.03]
[1752512118272,32.74546808,165.14,165.06,0.03]
[1752512118273,16.78468397,165.13,165.06,0.03]
[1752512118481,165.37468397,165.13,165.06,0.03]
[1752512118773,0.69,165.12,165.06,0.03]
[1752512120355,6.05656834,165.11,165.06,0.03]
[1752512120556,0.69,165.1,165.06,0.03]
[1752512120950,0.69,165.09,165.06,0.03]
[1752512121346,52.15798921,165.11,165.06,0.03]
[1752512121545,0.69,165.08,165.06,0.03]
[1752512122456,0.69,165.07,165.06,0.03]
[1752512124150,6.74803598,165.07,165.06,0.03]
[1752512127675,37.72803598,165.07,165.06,0.03]
[1752512129273,69.65780991,165.07,165.0,0.03]
[1752512129475,26.0,165.04,165.0,0.03]
[1752512129668,56.98,165.04,165.0,0.03]
[1752512130070,0.69,165.03,165.0,0.03]
[1752512130581,30.98,165.04,165.01,0.67]
[1752512131685,30.98,165.04,165.02,0.67]
[1752512132181,0.69,165.07,165.03,0.67]
[1752512132182,37.72815667,165.07,165.03,0.67]
[1752512132686,0.69,165.06,165.01,0.67]
[1752512132877,0.69,165.06,165.02,0.67]
[1752512133477,6.74850736,165.06,165.02,0.67]
[1752512133995,0.69,165.05,165.0,6.76046569]
[1752512134160,0.69,165.05,165.01,0.67]
[1752512134865,0.69,165.04,165.01,0.67]
[1752512135287,0.69,165.04,165.0,6.09046569]
[1752512135465,0.69,165.04,165.0,0.7]
[1752512135778,30.98,165.07,165.0,0.03]
[1752512135779,0.69,165.03,165.0,0.03]
[1752512138066,0.69,165.05,165.01,0.67]
[1752512138677,0.69,165.04,165.01,0.67]
[1752512138877,0.69,165.04,165.0,0.7]
[1752512139082,0.69,165.06,165.01,0.67]
[1752512139284,0.69,165.05,165.01,0.67]
[1752512139791,153.95812609,165.07,165.03,7.55423684]
[1752512139792,147.9,165.07,165.03,7.55423684]
[1752512140089,147.9,165.07,165.04,0.67]
[1752512140386,147.9,165.07,165.04,8.22423684]
[1752512140578,30.98,165.08,165.05,8.22423684]
[1752512140770,30.98,165.08,165.06,0.67]
[1752512140977,31.67,165.11,165.07,0.67]
[1752512141170,147.9,165.12,165.09,7.55423684]
[1752512141365,0.06,165.13,165.1,8.22423684]
[1752512141570,0.06,165.13,165.1,0.67]
[1752512142500,0.06,165.13,165.11,0.67]
[1752512142787,0.06,165.13,165.1,0.67]
[1752512142989,0.06,165.13,165.11,0.67]
[1752512143694,0.06,165.13,165.11,6.72644907]
[1752512145285,0.06,165.13,165.12,0.67]
[1752512146892,0.06,165.13,165.12,8.22423684]
[1752512147611,0.06,165.13,165.12,14.28043839]
[1752512148008,0.06,165.13,165.12,6.72620155]
[1752512150028,0.06,165.13,165.1,8.22423684]
[1752512150320,0.06,165.13,165.12,0.67]
[1752512151417,0.06,165.13,165.12,6.72620155]
[1752512151721,0.06,165.13,165.12,14.28043839]
[1752512151932,0.06,165.13,165.12,6.72620155]
[1752512154520,0.06,165.13,165.12,14.28043839]
[1752512154697,0.06,165.13,165.12,6.72620155]
[1752512155318,0.06,165.13,165.12,14.28043839]
[1752512157621,0.06,165.13,165.12,6.72620155]
[1752512157798,0.06,165.13,165.12,14.28043839]
[1752512159798,0.06,165.13,165.12,6.72620155]
[1752512160019,0.06,165.13,165.12,14.28043839]
[1752512161601,0.06,165.13,165.12,31.06512236]
[1752512162519,0.06,165.13,165.12,57.06512236]
[1752512166029,1e-08,165.13,165.12,57.06512236]
[1752512166534,1e-08,165.13,165.12,88.02512236]
[1752512167336,1e-08,165.13,165.12,88.63074251]
[1752512168005,1e-08,165.13,165.12,81.07650567]
[1752512168217,1e-08,165.13,165.12,88.63074251]
[1752512172011,1e-08,165.13,165.12,57.67074251]
[1752512172212,1e-08,165.13,165.12,88.63074251]
[1752512172821,1e-08,165.13,165.12,81.07650567]
[1752512173125,1e-08,165.13,165.12,88.63074251]
[1752512173719,1e-08,165.13,165.12,57.67074251]
[1752512173926,1e-08,165.13,165.12,88.61074251]
[1752512176419,1e-08,165.13,165.12,62.61074251]
[1752512176719,0.06,165.2,165.15,26.0]
[1752512176923,0.78,165.2,165.18,7.55423684]
[1752512177526,0.78,165.2,165.19,4.39173433]
[1752512177718,0.06,165.2,165.19,11.94597117]
[1752512178109,0.06,165.2,165.19,10.44536953]
[1752512178817,0.78,165.2,165.19,10.44536953]
[1752512179121,0.06,165.2,165.19,17.99960637]
[1752512179615,0.78,165.2,165.19,17.99960637]
[1752512180337,0.78,165.2,165.19,11.94597117]
[1752512180506,0.78,165.2,165.19,4.39173433]
[1752512181605,0.78,165.2,165.17,6.05413871]
[1752512182511,0.78,165.2,165.16,6.0547348]
[1752512183529,0.78,165.2,165.16,13.60897164]
[1752512183709,0.78,165.2,165.16,6.0547348]
[1752512183912,0.72,165.19,165.16,13.60897164]
[1752512184633,0.72,165.18,165.16,6.0547348]
[1752512185019,0.72,165.19,165.16,6.0547348]
[1752512185225,0.72,165.19,165.16,13.60897164]
[1752512186115,0.72,165.18,165.13,26.7]
[1752512186320,0.72,165.18,165.12,7.58423684]
[1752512186715,0.72,165.18,165.13,6.05572656]
[1752512187127,0.72,165.18,165.13,13.6099634]
[1752512187533,0.06,165.2,165.16,7.55423684]
[1752512187711,0.78,165.2,165.16,7.55423684]
[1752512188226,0.72,165.19,165.16,7.55423684]
[1752512188617,0.72,165.19,165.16,8.25423684]
[1752512189034,0.72,165.19,165.17,6.05436822]
[1752512191436,0.72,165.19,165.17,13.60860506]
[1752512191738,0.06,165.2,165.18,0.7]
[1752512192118,0.06,165.2,165.18,8.25423684]
[1752512192915,0.06,165.2,165.18,7.55423684]
[1752512193125,0.06,165.2,165.17,14.30860506]
[1752512194223,0.72,165.2,165.17,14.30860506]
[1752512194631,0.06,165.2,165.17,14.30860506]
[1752512194936,0.06,165.2,165.18,7.55423684]
[1752512195140,0.06,165.2,165.18,8.25423684]
[1752512195736,0.06,165.2,165.18,7.55423684]
[1752512195937,0.06,165.2,165.18,14.30821946]
[1752512196132,0.06,165.2,165.17,13.60845119]
[1752512196519,0.72,165.2,165.17,6.05421435]
[1752512196735,0.72,165.2,165.17,13.60845119]
[1752512197044,0.66,165.19,165.16,13.60887584]
[1752512197415,0.66,165.18,165.15,6.055067]
[1752512197638,0.06,165.2,165.12,23.39467151]
[1752512197639,0.66,165.17,165.12,0.03]
[1752512198138,0.66,165.17,165.12,14.34032441]
[1752512198442,0.66,165.17,165.12,6.08608757]
[1752512199026,12.58442283,165.18,165.12,13.64032441]
[1752512199027,6.5303,165.18,165.12,13.64032441]
[1752512199230,26.06,165.2,165.13,8.25423684]
[1752512199231,0.66,165.19,165.13,8.25423684]
[1752512199534,0.66,165.19,165.14,0.7]
[1752512199844,0.66,165.19,165.15,0.7]
[1752512200031,0.66,165.19,165.15,6.75487958]
[1752512200426,0.66,165.19,165.15,14.30911642]
[1752512201658,0.66,165.19,165.15,6.75487958]
[1752512202735,0.06,165.2,165.16,0.7]
[1752512202927,0.06,165.19,165.17,0.7]
[1752512203232,0.06,165.19,165.17,8.25423684]
[1752512203435,0.06,165.19,165.16,8.25423684]
[1752512204341,0.06,165.19,165.16,14.30875481]
[1752512205128,0.06,165.19,165.16,6.75451797]
[1752512205733,0.06,165.19,165.17,0.7]
[1752512206238,0.06,165.19,165.18,0.7]
[1752512207636,0.06,165.19,165.17,13.60848342]
[1752512207637,0.06,165.19,165.17,6.05424658]
[1752512207841,0.06,165.19,165.17,6.75424658]
[1752512208349,0.06,165.19,165.17,0.7]
[1752512208553,0.06,165.19,165.16,7.55423684]
[1752512208742,0.72,165.19,165.15,40.30924996]
[1752512209140,0.72,165.19,165.16,0.7]
[1752512209642,0.06,165.19,165.17,0.7]
[1752512210134,0.06,165.19,165.16,7.55423684]
[1752512210449,0.06,165.19,165.17,0.7]
[1752512210940,0.06,165.19,165.18,0.7]
[1752512212054,0.06,165.19,165.17,6.0540357]
[1752512212254,0.06,165.19,165.17,6.7540357]
[1752512212835,0.06,165.19,165.18,4.42927762]
[1752512213350,0.06,165.19,165.18,10.48327931]
[1752512213753,0.06,165.19,165.18,11.18327931]
[1752512213945,0.72,165.19,165.18,4.42927762]
[1752512214952,0.72,165.19,165.16,6.05472685]
[1752512215255,0.06,165.19,165.16,6.75471184]
[1752512215451,0.06,165.19,165.17,0.7]
[1752512215845,0.06,165.19,165.16,0.7]
[1752512216454,0.06,165.19,165.17,0.7]
[1752512217353,0.72,165.19,165.14,6.05546808]
[1752512217556,0.72,165.19,165.15,8.25423684]
[1752512217855,0.06,165.19,165.16,0.7]
[1752512218039,0.06,165.19,165.17,0.7]
[1752512218654,0.06,165.19,165.18,0.69]
[1752512219640,0.06,165.19,165.18,6.74400169]
[1752512219839,0.06,165.19,165.18,14.29823853]
[1752512221862,0.06,165.19,165.18,0.69]
[1752512222242,0.06,165.19,165.17,6.05436822]
[1752512222762,0.06,165.19,165.17,6.74436822]
[1752512222955,0.06,165.19,165.18,4.42704094]
[1752512223557,0.06,165.19,165.18,10.48104263]
[1752512223752,0.06,165.19,165.18,4.42704094]
[1752512225042,0.06,165.19,165.17,6.05406662]
[1752512225450,0.06,165.19,165.16,6.0547348]
[1752512225774,0.06,165.19,165.16,6.7447348]
[1752512226360,0.06,165.19,165.17,8.24423684]
[1752512226877,0.06,165.19,165.18,7.55423684]
[1752512227377,0.06,165.19,165.18,8.24423684]
[1752512227560,0.06,165.19,165.18,14.29823853]
[1752512227878,0.06,165.19,165.18,14.90363869]
[1752512230814,0.06,165.19,165.18,6.74400169]
[1752512230996,0.06,165.19,165.18,14.29823853]
[1752512236808,0.06,165.19,165.18,0.69]
[1752512237024,0.06,165.19,165.17,45.21848107]
[1752512237315,0.06,165.19,165.17,37.66424423]
[1752512237698,0.06,165.19,165.17,36.97424423]
[1752512238095,0.06,165.19,165.18,4.42551536]
[1752512238292,0.06,165.19,165.18,5.11551536]
[1752512238992,0.06,165.19,165.18,18.72375389]
[1752512239999,0.06,165.19,165.18,11.16951705]
[1752512240408,0.06,165.19,165.18,18.72375389]
[1752512243756,0.06,165.19,165.18,18.7213385]
[1752512244361,0.06,165.19,165.18,18.72187537]
[1752512246725,0.06,165.19,165.18,18.72120074]
[1752512247141,0.06,165.19,165.18,11.1669639]
[1752512247325,0.06,165.19,165.18,18.72120074]
[1752512248645,0.06,165.19,165.18,11.1669639]
[1752512248943,0.06,165.19,165.18,18.72120074]
[1752512249622,0.06,165.19,165.18,19.6433027]
[1752512249825,0.06,165.19,165.18,19.63143993]
[1752512250637,0.06,165.19,165.18,36.4161239]
[1752512251030,0.06,165.22,165.19,16.78468397]
[1752512251230,0.06,165.22,165.21,7.55423684]
[1752512251632,0.06,165.22,165.21,14.2971392]
[1752512257048,0.06,165.22,165.21,13.6071392]
[1752512257456,0.06,165.22,165.21,14.2971392]
[1752512260264,0.06,165.22,165.21,6.74290236]
[1752512260464,0.06,165.22,165.21,14.2971392]
[1752512261339,0.06,165.22,165.21,6.74290236]
[1752512261545,0.06,165.22,165.21,14.2971392]
[1752512263143,0.06,165.22,165.21,6.05290236]
[1752512263344,0.73,165.22,165.21,6.05290236]
[1752512263573,0.06,165.22,165.21,13.6071392]
[1752512266971,0.06,165.22,165.21,14.2971392]
[1752512267663,0.06,165.22,165.21,13.6071392]
[1752512269471,1.6143,165.21,165.2,0.91263473]
[1752512269710,1.6143,165.21,165.2,0.36263473]
[1752512269711,18.96898397,165.21,165.2,0.36263473]
[1752512270252,2.1843,165.21,165.2,0.36263473]
[1752512271566,2.1843,165.21,165.2,4.79117181]
[1752512272352,1.6143,165.21,165.2,0.36263473]
[1752512272558,1.6143,165.21,165.2,4.7902413]
[1752512273883,2.0843,165.21,165.2,4.7902413]
[1752512275682,8.13720236,165.21,165.2,4.7902413]
[1752512275879,2.0843,165.21,165.2,4.7902413]
[1752512276270,1.6143,165.21,165.2,4.7902413]
[1752512276787,0.06,165.22,165.2,4.7902413]
[1752512276971,0.06,165.22,165.21,4.42760657]
[1752512277869,0.53,165.22,165.21,4.42760657]
[1752512279185,0.06,165.22,165.21,4.42760657]
[1752512280275,0.53,165.22,165.21,4.42760657]
[1752512280881,0.53,165.22,165.2,0.36263473]
[1752512281084,0.53,165.22,165.21,4.42584252]
[1752512281269,0.53,165.22,165.2,0.36263473]
[1752512281470,0.47,165.21,165.2,0.36263473]
[1752512282468,0.06,165.22,165.2,0.36263473]
[1752512282669,0.53,165.22,165.2,0.36263473]
[1752512284681,31.45,165.22,165.2,0.36263473]
[1752512285192,31.45,165.22,165.21,4.42542468]
[1752512285574,30.98,165.22,165.21,4.42542468]
[1752512286193,30.98,165.22,165.2,0.36263473]
[1752512287871,31.45,165.22,165.2,0.36263473]
[1752512289388,0.47,165.21,165.2,0.36263473]
[1752512290088,30.98,165.22,165.2,0.36263473]
[1752512290398,30.9,165.21,165.2,0.36263473]
[1752512292295,30.9,165.21,165.2,6.41590349]
[1752512292979,30.96,165.22,165.2,6.41590349]
[1752512293294,0.06,165.22,165.21,6.76290236]
[1752512293487,0.06,165.22,165.21,14.3171392]
[1752512294901,0.06,165.22,165.21,18.74343485]
[1752512296693,0.06,165.22,165.21,11.18919801]
[1752512296901,0.06,165.22,165.21,18.74343485]
[1752512297200,0.06,165.22,165.21,11.18919801]
[1752512297376,0.06,165.22,165.21,18.74343485]
[1752512298083,0.06,165.22,165.21,18.74243371]
[1752512299580,0.06,165.22,165.21,12.68953135]
[1752512302186,0.06,165.22,165.21,4.42529451]
[1752512302699,0.06,165.22,165.2,7.91687157]
[1752512302904,0.06,165.22,165.2,0.36263473]
[1752512303296,0.06,165.22,165.2,1.07263473]
[1752512303493,0.06,165.22,165.21,0.71]
[1752512306308,0.06,165.22,165.21,8.26423684]
[1752512306907,0.06,165.22,165.21,12.6895207]
[1752512307318,0.06,165.22,165.21,12.68986874]
[1752512307808,0.06,165.22,165.21,5.1356319]
[1752512308021,0.06,165.22,165.21,4.4256319]
[1752512308917,0.06,165.22,165.2,0.36263473]
[1752512309396,0.06,165.22,165.2,1.07263473]
[1752512311416,0.06,165.22,165.2,1.10263473]
[1752512313209,0.06,165.22,165.2,7.15581943]
[1752512315315,0.06,165.22,165.21,0.71]
[1752512315687,0.06,165.22,165.21,8.26423684]
[1752512316712,0.06,165.22,165.21,14.3171392]
[1752512317418,0.06,165.22,165.21,6.76290236]
[1752512317624,0.06,165.22,165.21,45.2171392]
[1752512319000,0.06,165.22,165.21,62.6071134]
[1752512319216,0.06,165.22,165.21,88.6071134]
[1752512320820,0.06,165.22,165.21,71.2171392]
[1752512322422,0.06,165.22,165.21,88.6071134]
[1752512324220,0.06,165.22,165.21,88.00182317]
[1752512324798,0.06,165.22,165.21,65.16423684]
[1752512325197,0.06,165.22,165.21,7.55423684]
[1752512325412,0.06,165.22,165.2,0.39263473]
[1752512325625,0.06,165.22,165.2,7.94687157]
[1752512325815,0.06,165.22,165.2,0.39263473]
[1752512326030,0.06,165.22,165.2,7.94687157]
[1752512326200,0.06,165.22,165.2,0.39263473]
[1752512326399,0.06,165.22,165.2,7.94687157]
[1752512326631,0.06,165.22,165.2,8.65687157]
[1752512326797,0.06,165.22,165.2,1.10263473]
[1752512327619,0.06,165.22,165.21,0.71]
[1752512327926,0.06,165.22,165.2,8.65687157]
[1752512329511,0.06,165.22,165.2,1.10263473]
[1752512329722,0.06,165.22,165.2,8.65687157]
[1752512331317,0.06,165.22,165.2,0.39263473]
[1752512332835,0.47,165.21,165.2,0.39263473]
[1752512333619,0.53,165.22,165.2,0.39263473]
[1752512334018,6.05290236,165.21,165.2,0.39263473]
[1752512336609,6.52290236,165.21,165.2,0.39263473]
[1752512337424,24.81598633,165.21,165.2,1e-08]
[1752512340127,34.03130236,165.21,165.2,1e-08]
[1752512341411,36.99263543,165.22,165.2,1e-08]
[1752512341630,30.94,165.22,165.2,1e-08]
[1752512343048,30.94,165.22,165.21,0.69]
[1752512343244,0.06,165.22,165.21,0.69]
[1752512348244,0.06,165.22,165.21,14.2971392]
[1752512350230,0.06,165.22,165.21,0.69]
[1752512350428,0.06,165.22,165.21,8.24423684]
[1752512351354,0.06,165.22,165.21,14.2971392]
[1752512351557,0.06,165.22,165.21,6.74290236]
[1752512351724,0.06,165.22,165.21,8.24423684]
[1752512352560,0.06,165.22,165.21,14.2971392]
[1752512353949,0.06,165.22,165.21,18.71002237]
[1752512354253,0.06,165.22,165.21,18.71028974]
[1752512355946,0.06,165.22,165.21,11.1560529]
[1752512356167,0.06,165.22,165.21,18.71028974]
[1752512357162,0.06,165.22,165.21,4.41315054]
[1752512357744,0.53,165.22,165.21,4.41315054]
[1752512358148,0.06,165.22,165.21,4.41315054]
[1752512359355,0.06,165.22,165.21,10.4660529]
[1752512359560,0.06,165.22,165.21,4.41315054]
[1752512359785,0.06,165.22,165.2,14.29739228]
[1752512359962,0.06,165.22,165.21,4.41042676]
[1752512360348,0.06,165.22,165.21,4.41030005]
[1752512362368,0.06,165.22,165.21,11.15320241]
[1752512362664,0.06,165.22,165.21,18.70743925]
[1752512364769,0.06,165.22,165.21,4.41030005]
[1752512367960,0.06,165.22,165.2,1e-08]
[1752512368468,0.53,165.22,165.2,1e-08]
[1752512369055,0.06,165.22,165.2,1e-08]
[1752512370678,0.47,165.21,165.2,1e-08]
[1752512371060,31.35,165.21,165.2,1e-08]
[1752512372192,37.40290236,165.21,165.2,1e-08]
[1752512372563,185.30290236,165.21,165.2,1e-08]
[1752512373974,202.08758633,165.21,165.2,1e-08]
[1752512374380,228.08758633,165.21,165.2,1e-08]
[1752512376489,228.14758633,165.21,165.2,1e-08]
[1752512378773,202.14758633,165.21,165.2,1e-08]
[1752512379089,206.21573374,165.21,165.2,1e-08]
[1752512379267,58.31573374,165.21,165.2,1e-08]
[1752512379978,54.24758633,165.21,165.2,1e-08]
[1752512383573,6.11290236,165.21,165.2,1e-08]
[1752512384090,36.99290236,165.21,165.2,1e-08]
[1752512398204,36.99290236,165.21,165.2,0.66000001]
[1752512398396,36.99290236,165.21,165.2,1e-08]
[1752512399289,36.99290236,165.21,165.2,0.67000001]
[1752512400609,6.11290236,165.21,165.2,0.67000001]
[1752512400785,36.99290236,165.21,165.2,0.67000001]
[1752512400981,6.11290236,165.21,165.2,0.67000001]
[1752512401186,36.99290236,165.21,165.2,0.67000001]
[1752512401486,36.99290236,165.21,165.2,1e-08]
[1752512403406,36.99290236,165.21,165.2,0.67000001]
[1752512404709,36.99290236,165.21,165.2,1e-08]
[1752512405486,37.46290236,165.21,165.2,1e-08]
[1752512406195,185.36290236,165.21,165.2,1e-08]
[1752512407812,202.14758633,165.21,165.2,1e-08]
[1752512411798,228.14758633,165.21,165.2,1e-08]
[1752512412105,80.24758633,165.21,165.2,1e-08]
[1752512412493,84.32028306,165.21,165.2,1e-08]
[1752512419619,103.7170508,165.21,165.15,0.03]
[1752512419926,16.78468397,165.19,165.16,0.67]
[1752512420097,30.88,165.18,165.16,0.67]
[1752512420501,30.88,165.18,165.15,0.03]
[1752512420707,0.47,165.17,165.13,0.03]
[1752512420896,6.05510142,165.15,165.13,0.03]
[1752512421115,30.88,165.14,165.13,0.03]
[1752512422222,30.88,165.14,165.13,1e-08]
[1752512422802,31.35,165.14,165.13,1e-08]
[1752512423112,32.05583479,165.13,165.11,1e-08]
[1752512423419,47.66468397,165.12,165.11,1e-08]
[1752512423925,48.13468397,165.12,165.11,1e-08]
[1752512425021,23.31088552,165.12,165.11,1e-08]
[1752512425222,23.31088552,165.12,165.11,0.67000001]
[1752512425223,36.93620155,165.12,165.11,0.67000001]
[1752512425523,36.93620155,165.12,165.11,1e-08]
[1752512426937,36.93620155,165.12,165.11,0.67000001]
[1752512427433,36.93620155,165.12,165.11,1e-08]
[1752512432610,6.05620155,165.12,165.11,1e-08]
[1752512432819,36.93620155,165.12,165.11,1e-08]
[1752512433513,6.05620155,165.12,165.11,1e-08]
[1752512433811,36.93620155,165.12,165.11,0.67000001]
[1752512434423,36.93620155,165.12,165.11,1e-08]
[1752512436041,6.05620155,165.12,165.11,1e-08]
[1752512436209,36.93620155,165.12,165.11,1e-08]
[1752512436613,54.19088552,165.12,165.11,1e-08]
[1752512439536,36.93620155,165.12,165.11,0.67000001]
[1752512440128,6.05620155,165.12,165.11,0.67000001]
[1752512440336,36.93620155,165.12,165.11,0.67000001]
[1752512441923,36.93620155,165.12,165.11,1e-08]
[1752512442119,53.72088552,165.12,165.11,1e-08]
[1752512442411,54.19088552,165.12,165.11,1e-08]
[1752512442641,16.78468397,165.11,165.08,1e-08]
[1752512442941,16.78468397,165.09,165.08,1e-08]
[1752512444037,22.84198604,165.09,165.08,1e-08]
[1752512444816,38.64524123,165.09,165.05,0.03]
[1752512445034,31.54,165.08,165.05,0.03]
[1752512445230,26.0,165.06,165.05,0.03]
[1752512445437,56.88,165.06,165.05,0.03]
[1752512446237,62.938403,165.06,165.05,0.03]
[1752512446740,62.938403,165.06,165.05,0.7]
[1752512446952,80.38308697,165.06,165.05,1e-08]
[1752512447121,48.84308697,165.06,165.05,1e-08]
[1752512447430,79.72308697,165.06,165.05,1e-08]
[1752512448225,48.84308697,165.06,165.05,0.67000001]
[1752512448443,79.72308697,165.06,165.05,0.67000001]
[1752512448648,79.72308697,165.06,165.05,1e-08]
[1752512449458,48.84308697,165.06,165.05,1e-08]
[1752512449623,79.72308697,165.06,165.05,1e-08]
[1752512450438,48.84308697,165.06,165.05,1e-08]
[1752512450662,79.72308697,165.06,165.05,1e-08]
[1752512451036,80.38308697,165.06,165.05,1e-08]
[1752512451545,79.72308697,165.06,165.05,1e-08]
[1752512452247,80.38308697,165.06,165.05,1e-08]
[1752512453520,79.72308697,165.06,165.05,1e-08]
[1752512455330,48.84308697,165.06,165.05,1e-08]
[1752512455635,79.72308697,165.06,165.05,0.67000001]
[1752512456139,32.058403,165.06,165.05,0.67000001]
[1752512456340,62.938403,165.06,165.05,0.67000001]
[1752512457148,62.938403,165.06,165.05,1e-08]
[1752512457335,32.058403,165.06,165.05,1e-08]
[1752512457534,62.938403,165.06,165.05,1e-08]
[1752512458652,62.938403,165.06,165.05,0.65000001]
[1752512458950,62.938403,165.06,165.05,1e-08]
[1752512461635,62.938403,165.06,165.05,0.65000001]
[1752512462025,62.938403,165.06,165.05,1e-08]
[1752512463227,62.938403,165.06,165.03,0.2]
[1752512463228,18.41138397,165.05,165.03,0.2]
[1752512463429,16.78468397,165.03,164.99,1e-08]
[1752512463634,16.78468397,164.99,164.95,0.03]
[1752512463945,16.78468397,164.97,164.95,0.03]
[1752512464144,16.78468397,164.95,164.93,0.03]
[1752512464447,0.7,164.96,164.93,0.03]
[1752512464629,10.0,164.97,164.93,0.03]
[1752512464630,17.48468397,164.94,164.93,0.03]
[1752512465020,48.36468397,164.94,164.93,0.03]
[1752512465221,17.48468397,164.94,164.93,0.03]
[1752512465424,30.88,164.94,164.93,0.03]
[1752512465944,36.94281071,164.94,164.93,0.03]
[1752512466928,56.88,164.94,164.93,0.68]
[1752512467559,56.88,164.94,164.93,0.03]
[1752512468132,56.88,164.94,164.93,0.68]
[1752512468463,30.88,164.94,164.93,0.68]
[1752512468963,30.88,164.94,164.93,0.03]
[1752512469251,36.94281071,164.94,164.93,0.03]
[1752512469550,37.64281071,164.94,164.93,0.03]
[1752512470426,54.42749468,164.94,164.93,0.03]
[1752512471341,6.06281071,164.94,164.93,0.03]
[1752512471554,147.9,164.96,164.93,0.68]
[1752512471555,153.96212572,164.96,164.93,0.68]
[1752512471761,30.88,164.95,164.93,0.68]
[1752512472250,26.0,164.94,164.93,0.03]
[1752512472430,17.48468397,164.94,164.93,0.03]
[1752512473140,23.54749468,164.94,164.93,0.03]
[1752512473351,23.54749468,164.94,164.93,1e-08]
[1752512474252,23.54749468,164.94,164.9,0.03]
[1752512474253,42.78468397,164.91,164.9,0.03]
[1752512474561,73.66468397,164.91,164.9,0.03]
[1752512474744,74.36468397,164.91,164.9,0.03]
[1752512474946,74.36468397,164.91,164.9,1e-08]
[1752512475347,80.42859761,164.91,164.89,1e-08]
[1752512475645,0.7,164.9,164.89,1e-08]
[1752512475832,31.58,164.9,164.89,1e-08]
[1752512476032,16.78468397,164.89,164.84,0.65]
[1752512476250,30.88,164.88,164.84,0.65]
[1752512476448,16.78468397,164.87,164.82,0.85]
[1752512476645,31.58,164.86,164.82,0.85]
[1752512476941,16.78468397,164.85,164.82,0.85]
[1752512477139,30.88,164.84,164.83,8.03570574]
[1752512477435,30.88,164.84,164.83,0.65]
[1752512478656,30.88,164.84,164.82,0.85]
[1752512479454,6.06685676,164.83,164.82,0.85]
[1752512479643,15.86438189,164.86,164.82,0.85]
[1752512479644,6.06575666,164.86,164.83,0.65]
[1752512479840,30.9,164.85,164.83,0.65]
[1752512480041,30.9,164.85,164.82,7.58570574]